[Event "15th Arad Open 2022"]
[Site "Arad"]
[Date "2022.08.14"]
[Round "9.16"]
[White "Oltean, Cristian-Daniel"]
[Black "Matasaru, Stephanie"]
[Result "0-1"]
[ECO "B81"]
[WhiteElo "2158"]
[BlackElo "1885"]
[Annotator "TA"]
[PlyCount "66"]
[EventDate "2022.08.08"]
[EventType "swiss"]
[EventCountry "ROU"]
[SourceTitle "playchess.com"]
[Source "ChessBase"]
[SourceQuality "1"]
[TimeControl "5400+30"]

{[%evp 14,66,28,36,40,19,33,0,7,0,2,-8,0,0,0,0,0,0,0,0,12,11,26,0,26,0,0,0,33,-25,0,-202,-202,-179,-223,-272,-307,-400,-389,-886,-827,-872,-852,-1002,-968,-1158,-721,-721,-707,-752,-744,-835,-812,-742,-657]} 1. e4 {[%emt 0:00:01]} c5 {[%emt 0:00:03]} 2. Nf3 {[%emt 0:00:06]} d6 {[%emt 0:00:03]} 3. d4 {[%emt 0:00:04]} cxd4 {[%emt 0:00:03]} 4. Nxd4 {[%emt 0:00:06]} Nf6 {[%emt 0:00:03][%cal Bg8f6,Bf6d7,Bd7e5][%mdl 32]} 5. Nc3 {[%emt 0:00:08]} a6 {[%emt 0:00:02]} 6. h3 {[%emt 0:00:23]} e6 {[%emt 0:00:11]} 7. g4 {[%emt 0:00:40]} Be7 {[%emt 0:00:10]} 8. Bg2 {[%emt 0:00:24]} Nfd7 {[%emt 0:00:17] B81: Sicilian Scheveningen: Keres Attack.} 9. Be3 {[%emt 0:06:08][%cal Og4g5]} Ne5 {[%emt 0:01:02]} 10. O-O {[%emt 0:06:10]} g5 {[%emt 0:04:32] [#] The position is equal.} 11. Nf3 $146 {[%emt 0:05:04]} ({Predecessor:} 11. Qe2 Nbc6 12. Rad1 Nxd4 13. Bxd4 Bd7 14. f4 gxf4 15. Rxf4 Bg5 16. Rff1 Qe7 17. a4 {0-1 (41) Srijit,P (2419)-Idani,P (2621) Dhaka 2022}) 11... Nbd7 {[%emt 0:01:49]} 12. Bd4 {[%emt 0:32:45]} Nxf3+ {[%emt 0:11:25]} 13. Qxf3 {[%emt 0:00:26]} Ne5 {[%emt 0:05:26]} 14. Qg3 {[%emt 0:05:04]} Qc7 {[%emt 0:04:17]} 15. f4 {[%emt 0:04:09]} gxf4 {[%emt 0:00:08]} 16. Qxf4 {[%emt 0:00:19]} Rf8 {[%emt 0:03:14]} 17. a4 {[%emt 0:04:59]} Bd7 {[%emt 0:03:18]} 18. Qf2 {[%emt 0:03:29]} Bc6 {[%emt 0:03:19]} 19. b3 {[%emt 0:07:01]} h5 {[%emt 0:13:04]} 20. gxh5 {[%emt 0:04:59]} (20. Bb6 Qd7 $14) 20... f5 {[%emt 0:00:22]} 21. Qe3 {[%emt 0:04:05]} ({Wrong is} 21. exf5 $2 Rg8 22. Nb5 Qc8 $19) ({White should play} 21. Rad1 $14) 21... Rg8 {[%emt 0:03:40][%mdl 1024] Black has compensation.} (21... O-O-O $5 {[%cal Rf5f4]}) 22. Bb6 $2 {[%emt 0:03:29] [#]} (22. Kh1 $11) 22... Bg5 $1 $19 {[%emt 0:01:59][%cal Be7g5,Bg5e3,Be3b6][%mdl 32]} 23. Qf2 {[%emt 0:03:54]} Qg7 {[%emt 0:01:41] Threatens to win with ...Nd7.} 24. Kh1 {[%emt 0:01:10] [#]} Nd7 $1 {[%emt 0:02:06]} 25. Nd5 {[%emt 0:01:56]} Nxb6 {[%emt 0:03:41]} ({Not} 25... exd5 26. exd5 Bh4 27. Qe2+ Qe7 28. Qxe7+ Kxe7 29. Bf2 (29. dxc6 Nxb6 30. Rf4 Bf6 $14) 29... Bxf2 30. dxc6 $16) 26. Nxb6 {[%emt 0:00:24] [#]} (26. Qe2 Bxd5 27. exd5) 26... Be3 $1 {[%emt 0:00:27][%mdl 512] A strong pair of Bishops. Black is clearly winning.} 27. Qe2 {[%emt 0:00:26]} Bxb6 {[%emt 0:00:27]} 28. Rad1 {[%emt 0:00:13]} O-O-O {[%emt 0:01:41] Strongly threatening ...Qe5.} 29. Rd2 {[%emt 0:00:38]} Qxg2+ {[%emt 0:02:02]} 30. Qxg2 {[%emt 0:00:07]} Bxe4 {[%emt 0:00:06]} 31. Qxe4 {[%emt 0:00:17]} fxe4 {[%emt 0:00:05]} 32. Rf7 {[%emt 0:00:13]} Rg3 {[%emt 0:01:09] White must now prevent ...Rdg8.} 33. Kh2 {[%emt 0:00:11]} Rdg8 {[%emt 0:35:08] Weighted Error Value: White=0.64/Black=0.18 (very precise)} 0-1

[Event "15th Arad Open 2022"]
[Site "Arad"]
[Date "2022.08.14"]
[Round "9.17"]
[White "Korcsek, Alexandru-David"]
[Black "Herczeg, Marcell"]
[Result "1-0"]
[ECO "B22"]
[WhiteElo "1826"]
[BlackElo "2044"]
[Annotator "NA RC"]
[PlyCount "63"]
[EventDate "2022.08.08"]
[EventType "swiss"]
[EventCountry "ROU"]
[SourceTitle "playchess.com"]
[Source "ChessBase"]
[SourceQuality "1"]
[TimeControl "5400+30"]

1. e4 {[%emt 0:00:03]} c5 {[%emt 0:00:19]} 2. c3 {[%emt 0:00:09]} Nf6 {[%emt 0:00:31]} 3. e5 {[%emt 0:00:17]} Nd5 {[%emt 0:06:29]} 4. d4 {[%emt 0:00:06]} cxd4 {[%emt 0:00:51]} 5. Nf3 {[%emt 0:00:08]} e6 {[%emt 0:01:44]} 6. cxd4 {[%emt 0:00:07]} d6 {[%emt 0:00:46]} 7. a3 {[%emt 0:02:35]} Nc6 {[%emt 0:02:42]} 8. Bd3 {[%emt 0:02:29]} Qa5+ {[%emt 0:12:17]} (8... dxe5 $11 9. dxe5 g6) 9. Bd2 {[%emt 0:13:29]} Qb6 {[%emt 0:02:25]} 10. Bc3 {[%emt 0:06:45]} ({White should play} 10. Nc3 $14) 10... Nf4 {[%emt 0:15:54]} (10... Bd7 $15) 11. O-O {[%emt 0:00:33]} Nxd3 {[%emt 0:05:33]} 12. Qxd3 {[%emt 0:00:06]} dxe5 {[%emt 0:00:20]} 13. dxe5 {[%emt 0:00:57]} Be7 {[%emt 0:01:09]} 14. Nbd2 {[%emt 0:02:58]} O-O {[%emt 0:01:41]} 15. Ne4 {[%emt 0:01:20]} Rd8 {[%emt 0:02:43]} 16. Qc4 {[%emt 0:04:15]} Na5 {[%emt 0:13:42] [#]} 17. Qa4 {[%emt 0:01:05]} ({White should try} 17. Qe2 $1 $16) 17... Nb3 {[%emt 0:11:43]} 18. Rad1 {[%emt 0:01:37]} Qc6 {[%emt 0:12:40]} 19. Nf6+ {[%emt 0:08:04]} gxf6 {[%emt 0:03:04]} 20. Qg4+ {[%emt 0:00:59]} Kf8 {[%emt 0:00:18]} 21. exf6 {[%emt 0:00:26]} Bd6 {[%emt 0:01:08]} 22. Rxd6 {[%emt 0:04:40]} Qxd6 {[%emt 0:00:41]} 23. Qg7+ {[%emt 0:01:17]} Ke8 {[%emt 0:00:04]} 24. Bb4 {[%emt 0:02:41]} Nc5 {[%emt 0:00:12]} 25. Ng5 {[%emt 0:00:14]} Rd7 {[%emt 0:00:55]} 26. Ne4 $18 {[%emt 0:01:33]} b6 {[%emt 0:00:52]} 27. Nxd6+ {[%emt 0:00:12]} Rxd6 {[%emt 0:00:01]} 28. Qg8+ {[%emt 0:00:42]} Kd7 {[%emt 0:00:01]} 29. Qxf7+ {[%emt 0:00:29]} Kc6 {[%emt 0:00:01]} 30. Qe8+ {[%emt 0:01:21]} Kb7 {[%emt 0:01:44]} 31. f7 {[%emt 0:00:12]} Bd7 {[%emt 0:00:06]} 32. Qxa8+ {[%emt 0:00:10]} 1-0

[Event "15th Arad Open 2022"]
[Site "Arad"]
[Date "2022.08.14"]
[Round "9.18"]
[White "Samu, Sorin-Mihai"]
[Black "Iacoban, Anatolie"]
[Result "1-0"]
[ECO "B07"]
[WhiteElo "1952"]
[BlackElo "1821"]
[Annotator "TA"]
[PlyCount "52"]
[EventDate "2022.08.08"]
[EventType "swiss"]
[EventCountry "ROU"]
[SourceTitle "playchess.com"]
[Source "ChessBase"]
[SourceQuality "1"]
[TimeControl "5400+30"]

{[%evp 9,52,0,48,58,78,59,79,64,59,32,78,67,80,67,79,72,66,56,38,52,208,92,91,81,116,62,68,61,55,74,105,40,187,125,118,134,120,121,177,184,178,175,175,173,239]} 1. d4 {[%emt 0:00:30]} d6 {[%emt 0:00:30]} 2. e4 {[%emt 0:00:30]} Nf6 {[%emt 0:00:30]} 3. Nc3 {[%emt 0:00:30]} g6 {[%emt 0:00:51]} 4. Bc4 {[%emt 0:00:09]} Bg7 {[%emt 0:00:19]} 5. h4 {[%emt 0:00:12] [#]} Nbd7 $146 {[%emt 0:00:31]} (5... Nc6 $11) ({Predecessor:} 5... c6 6. a3 Nbd7 7. f4 Nb6 8. Ba2 Bg4 9. Qd3 Nh5 10. Nh3 e5 11. Nf2 exd4 12. Ne2 Bxe2 13. Kxe2 {0-1 (26) Lo Coco,A (1219)-Neuenbaumer,J (1937) Berlin 2022}) 6. h5 $14 {[%emt 0:00:42] B07: Pirc Defence: Miscellaneous Systems.} gxh5 {[%emt 0:01:41]} 7. Nge2 {[%emt 0:00:30]} c5 {[%emt 0:02:57]} 8. dxc5 {[%emt 0:00:41] White is better.} Nxc5 {[%emt 0:01:00]} 9. Nf4 {[%emt 0:00:49]} (9. e5 $5 dxe5 10. Qxd8+ Kxd8 11. Bxf7 $14) 9... e6 {[%emt 0:06:22]} (9... Bd7 $14 {is more appropriate.}) 10. Bb5+ $16 {[%emt 0:01:10]} Bd7 {[%emt 0:00:14]} 11. Qxd6 {[%emt 0:00:51]} Ncxe4 {[%emt 0:03:33]} 12. Bxd7+ {[%emt 0:01:40]} (12. Nxe4 {looks sharper.} Nxe4 13. Qb4 Bxb5 14. Nxh5 Bd4 15. Qxb5+ Qd7 16. Qxd7+ Kxd7 17. f3) 12... Qxd7 {[%emt 0:00:12]} 13. Qxd7+ {[%emt 0:00:56]} Kxd7 {[%emt 0:00:10]} 14. Nxh5 {[%emt 0:00:26] Strongly threatening Nxe4.} Bf8 $2 {[%emt 0:05:14]} (14... Nxc3 $14 15. Nxg7 Nce4) 15. Nxe4 {[%emt 0:00:11]} (15. f3 $18) 15... Nxe4 {[%emt 0:00:24]} 16. f3 {[%emt 0:00:25]} Nd6 {[%emt 0:00:37]} 17. Nf6+ {[%emt 0:00:39]} (17. b3 $16) 17... Kc6 $14 {[%emt 0:00:36]} 18. Bf4 $36 {[%emt 0:00:27][%mdl 2048] White is more active.} ({Much worse is} 18. Rxh7 Be7 19. Rxh8 Rxh8 $15) 18... Bg7 {[%emt 0:03:23] [#]} 19. O-O-O $1 {[%emt 0:02:03]} Rad8 {[%emt 0:02:59] [#]} (19... Nc4 20. Bg5) 20. Be5 {[%emt 0:01:27] White is much more active.} ({Much weaker is} 20. Nxh7 $6 Nc4 21. b3 Rxh7 22. bxc4 Rxd1+ 23. Rxd1 Bc3 $11) (20. Nh5 $1 $16 {[%cal Rh5g7]} Bf8 21. Rd3) 20... h6 {[%emt 0:01:04] [#]} ({Black should try} 20... h5 $14) 21. Ng4 {[%emt 0:01:18]} (21. Rd3 $1 $18) 21... Rhg8 {[%emt 0:01:08]} 22. Bxg7 {[%emt 0:00:33]} Rxg7 {[%emt 0:00:06]} 23. Rxh6 {[%emt 0:00:18]} Rdg8 {[%emt 0:01:03]} (23... Kc7 $16 24. Ne3 Nb5 25. Rxd8 Kxd8) 24. Ne5+ $18 {[%emt 0:01:10] White is clearly better.} Kc7 {[%emt 0:00:29]} 25. g4 {[%emt 0:00:31]} Rd8 {[%emt 0:02:18]} 26. Rf6 {[%emt 0:01:28]} Ra8 {[%emt 1:05:19] Weighted Error Value: White=0.18 (very precise) /Black=0.50} (26... Re8 {is a better defense.} 27. b3 Re7) 1-0

[Event "15th Arad Open 2022"]
[Site "Arad"]
[Date "2022.08.14"]
[Round "9.19"]
[White "Bartha, Andrei"]
[Black "Capragiu, Matei-Stefan"]
[Result "1-0"]
[ECO "B34"]
[WhiteElo "1772"]
[BlackElo "1925"]
[Annotator "TA"]
[PlyCount "67"]
[EventDate "2022.08.08"]
[EventType "swiss"]
[EventCountry "ROU"]
[SourceTitle "playchess.com"]
[Source "ChessBase"]
[SourceQuality "1"]
[TimeControl "5400+30"]

{[%evp 18,67,0,-22,-23,-33,-22,-24,-29,-32,-33,-80,-53,-108,-111,-99,-101,-267,-122,-222,-87,-278,-294,-277,-141,-138,-137,-133,-45,-45,-43,-80,-88,-83,-40,-39,-8,-146,-148,-746,-732,-692,-219,-198,-135,-264,296,297,283,273,29998,29999]} 1. e4 {[%emt 0:08:06]} c5 {[%emt 0:00:23]} 2. Nf3 {[%emt 0:00:17]} Nc6 {[%emt 0:00:06]} 3. d4 {[%emt 0:00:13]} cxd4 {[%emt 0:00:21]} 4. Nxd4 {[%emt 0:00:12]} g6 {[%emt 0:00:11]} 5. Nc3 {[%emt 0:02:24]} Bg7 {[%emt 0:00:10]} 6. Be3 {[%emt 0:00:41]} Nf6 {[%emt 0:00:25]} 7. Nxc6 {[%emt 0:05:01]} bxc6 {[%emt 0:01:55]} 8. e5 {[%emt 0:00:19]} Ng8 {[%emt 0:00:29]} 9. Bd4 {[%emt 0:00:13]} Qa5 {[%emt 0:02:36]} 10. e6 {[%emt 0:00:17]} (10. f4 $5 {[%cal Rf1c4]}) 10... Nf6 {[%emt 0:00:13] B34: Sicilian: Accelerated Dragon with 5 Nc3: sidelines.} 11. exd7+ {[%emt 0:00:12]} Bxd7 {[%emt 0:00:15]} 12. Qe2 {[%emt 0:06:10]} c5 {[%emt 0:03:50] Black has an edge.} (12... O-O {with more complications.} 13. O-O-O Rfb8 14. Qxe7 Be6) 13. Be5 {[%emt 0:02:14]} O-O {[%emt 0:00:45][%cal Oc5c4]} 14. O-O-O {[%emt 0:00:19]} (14. Qa6 $15 Qb4 15. O-O-O) 14... Bc6 $1 $17 {[%emt 0:00:53]} (14... Bg4 15. f3 Be6 16. Qa6 $11) 15. f3 {[%emt 0:05:52]} ({White should try} 15. a3 $15) 15... Bh6+ {[%emt 0:04:28]} 16. Kb1 {[%emt 0:03:49]} Nd7 $1 {[%emt 0:02:09]} 17. Bg3 {[%emt 0:07:07] [#]} (17. Rxd7 $17 {is the only way for White.} Bxd7 18. h4) 17... Bg7 $146 {[%emt 0:05:04]} (17... Rab8 $1 $19 {[%cal Ob8b2][%mdl 512] is more deadly.} 18. Bxb8 (18. Qe1 Bg7) 18... Rxb8) ({Predecessor:} 17... Rab8 18. Bxb8 Rxb8 19. Qe1 Bg7 20. Rd3 Qb4 21. b3 c4 22. Re3 cxb3 23. cxb3 a5 {0-1 (36) Spirin,A (2111)-Meissner,R (2141) LSS email 2011}) 18. Rd3 {[%emt 0:06:25]} (18. Qxe7 $2 Rae8 19. Qd6 Rb8 $1 $19) (18. Qa6 $17 Bxc3 19. bxc3 Rab8+ 20. Kc1 (20. Bxb8 Rxb8+ 21. Kc1 Qxc3 $19) 20... Qxc3 21. Qxc6) 18... Rab8 {[%emt 0:06:18]} (18... c4 $19 {and Black stays clearly on top.} 19. Re3 Qb6) 19. Nd1 $2 {[%emt 0:06:56]} (19. Bxb8 $17 Rxb8 20. Nd1) 19... c4 $19 {[%emt 0:20:38]} 20. Qd2 {[%emt 0:04:46]} Qb6 {[%emt 0:16:52]} (20... Rxb2+ $1 $19 21. Nxb2 c3) 21. Rc3 $17 {[%emt 0:10:07] [#]} Nc5 $1 {[%emt 0:13:39]} 22. Bxc4 {[%emt 0:08:43]} (22. Bxb8 Rd8) 22... Bxc3 {[%emt 0:01:49]} ({Black should play} 22... Rfd8 $17 23. Qc1 Rb7) 23. Qxc3 $15 {[%emt 0:00:42] Bf2 is the strong threat.} Rb7 {[%emt 0:02:34]} 24. Re1 {[%emt 0:03:23]} Rd8 $36 {[%emt 0:01:21][%mdl 2048] Strongly threatening ...Na4. Black is on the roll.} 25. b3 {[%emt 0:01:53]} Na4 {[%emt 0:01:20]} 26. Qe5 {[%emt 0:03:13]} Qb4 {[%emt 0:00:46] White must now prevent ...Qxc4.} (26... Rbd7 $5 {[%cal Rd7d1]} 27. Ne3 (27. Bxf7+ $2 Kxf7 28. Qf4+ Ke8 $19) 27... Bb5 $1 28. Bxb5 Qxb5 $1 $15) 27. Bd3 {[%emt 0:06:09]} (27. Bxf7+ $2 Kxf7 28. Qe6+ Kf8 $19) (27. Ne3 $1 $11 {remains equal.}) 27... Bb5 $1 $17 {[%emt 0:07:49]} 28. Bxb5 {[%emt 0:01:29][%mdl 8192]} (28. a3 $2 Qxa3 $1 29. Qa1 (29. Bxb5 $2 Rxb5 30. Qa1 Qb4 $19) 29... Qb4 $19) (28. Qe4 $17 Bxd3 29. Qxb4 Rxb4 30. cxd3) 28... Rxb5 $19 {[%emt 0:00:11]} 29. Qe3 {[%emt 0:00:49]} Qa3 $2 {[%emt 0:01:09]} (29... Rbd5 30. Nf2 Nc3+ 31. Kb2 Ra5 $1) 30. Be5 {[%emt 0:00:55] [#]} Rbd5 {[%emt 0:02:05]} ({Better is} 30... Rxe5 $1 $19 {[%mdl 512]} 31. Qxe5 f6 32. Qe6+ Kf8 33. bxa4 Rb8+ 34. Qb3 Rxb3+ 35. axb3 Qd6) 31. Nf2 {[%emt 0:00:56] [#]} (31. Nb2 $17 Nxb2 32. Bxb2 Rd1+ 33. Bc1) 31... Nc5 $4 {[%emt 0:03:25][%mdl 8192]} (31... f6 32. Ba1 $17) (31... Rd2 $1 $19 {[%cal Od2c2] avoids the disaster. ( -> ...Rxc2!)} 32. Rc1 {[#]} (32. Qh6 $2 f6 $19) 32... R8d6 $1 {[%mdl 512]}) 32. Bb2 $18 {[%emt 0:00:51][%mdl 64] Discovered Attack. Chess con chili.} ({Not} 32. Qh6 Ne6 33. Bb2 Qa5 $17) 32... Qa5 {[%emt 0:00:33]} 33. Qxe7 {[%emt 0:01:12][%cal Oe7e8] Qe8+! would kill now.} Qd2 $2 {[%emt 0:01:13] [#]} (33... Ne6 $18 34. Rc1 (34. Rxe6 Rd1+ 35. Bc1 fxe6 $16) 34... Rd4) 34. Qe8+ $3 {[%emt 0:00:30][%mdl 512] Weighted Error Value: White=0.54/Black=0.79} 1-0

[Event "15th Arad Open 2022"]
[Site "Arad"]
[Date "2022.08.14"]
[Round "9.20"]
[White "Batagan, Ilinca-Petra"]
[Black "Parasca, Claudiu"]
[Result "1-0"]
[ECO "D34"]
[WhiteElo "1932"]
[BlackElo "1784"]
[Annotator "RC"]
[PlyCount "37"]
[EventDate "2022.08.08"]
[EventType "swiss"]
[EventCountry "ROU"]
[SourceTitle "playchess.com"]
[Source "ChessBase"]
[SourceQuality "1"]
[TimeControl "5400+30"]

1. d4 {[%emt 0:00:01]} d5 {[%emt 0:00:10]} 2. c4 {[%emt 0:00:05]} e6 {[%emt 0:00:17]} 3. Nf3 {[%emt 0:00:06]} c5 {[%emt 0:00:06]} 4. cxd5 {[%emt 0:00:21]} exd5 {[%emt 0:00:11]} 5. g3 {[%emt 0:00:06]} Nc6 {[%emt 0:03:07]} 6. Bg2 {[%emt 0:00:24]} Nf6 {[%emt 0:01:15]} 7. O-O {[%emt 0:00:15]} Be6 {[%emt 0:02:21]} 8. Nc3 {[%emt 0:00:26]} Be7 {[%emt 0:03:59]} 9. dxc5 {[%emt 0:00:51]} Bxc5 {[%emt 0:00:38]} 10. Bg5 {[%emt 0:03:02]} Be7 {[%emt 0:09:31]} 11. Nd4 {[%emt 0:08:38]} O-O {[%emt 0:01:47]} 12. Rc1 {[%emt 0:09:46]} h6 {[%emt 0:09:47]} 13. Nxc6 {[%emt 0:02:44]} bxc6 {[%emt 0:00:15]} 14. Bxf6 {[%emt 0:01:28]} Bxf6 {[%emt 0:01:17]} 15. Na4 {[%emt 0:00:47]} Rc8 {[%emt 0:13:23]} 16. Nc5 {[%emt 0:03:59]} Bxb2 {[%emt 0:02:20]} 17. Rb1 {[%emt 0:02:27]} Ba3 {[%emt 0:04:08]} 18. Nb7 {[%emt 0:04:04]} Qe7 {[%emt 0:01:05]} 19. Qa4 {[%emt 0:02:28]} 1-0